fUSD/lending_fUSD_20250514
["ID","MTS","AMOUNT","RATE_DAILY","PERIOD"]
[361077685,1747234244246,-545.8,0.00010968,2]
[361077686,1747234244256,-400.0,0.00010968,2]
[361077687,1747234244265,-2276.95,0.00010968,2]
[361077688,1747234244274,-377.52918228,0.00010968,2]
[361077689,1747234244283,-754.18,0.00010968,2]
[361077690,1747234244293,-400.0,0.00010968,2]
[361077691,1747234244302,-400.0,0.00010968,2]
[361077692,1747234244315,-400.0,0.00010968,2]
[361077693,1747234244323,-400.0,0.00010968,2]
[361077694,1747234244332,-454.25,0.00010968,2]
[361077695,1747234244342,-494.78,0.00010968,2]
[361077696,1747234244351,-400.0,0.00010968,2]
[361077697,1747234244361,-400.0,0.00010968,2]
[361077698,1747234244370,-400.0,0.00010968,2]
[361077699,1747234244379,-400.0,0.00010968,2]
[361077700,1747234244390,-400.0,0.00010968,2]
[361077701,1747234244400,-693.11,0.00010968,2]
[361077702,1747234244409,-400.0,0.00010968,2]
[361077703,1747234244419,-400.0,0.00010968,2]
[361077704,1747234244428,-400.0,0.00010968,2]
[361077705,1747234244438,-400.0,0.00010968,2]
[361077706,1747234244449,-400.0,0.00010968,2]
[361077707,1747234244460,-1105.54,0.00010968,2]
[361077708,1747234244470,-400.0,0.00010968,2]
[361077709,1747234244479,-400.0,0.00010968,2]
[361077710,1747234244488,-747.89,0.00010968,2]
[361077711,1747234244498,-400.0,0.00010968,2]
[361077712,1747234244507,-400.0,0.00010968,2]
[361077713,1747234244517,-400.0,0.00010968,2]
[361077714,1747234244528,-400.0,0.00010968,2]
[361077715,1747234244540,-499.26,0.00010968,2]
[361077716,1747234244549,-591.57,0.00010968,2]
[361077717,1747234244558,-400.0,0.00010968,2]
[361077718,1747234244567,-400.0,0.00010968,2]
[361077719,1747234244576,-1045.17,0.00010968,2]
[361077720,1747234244586,-400.0,0.00010968,2]
[361077721,1747234244596,-424.03,0.00010968,2]
[361077722,1747234244607,-400.0,0.00010968,2]
[361077723,1747234244616,-385.99682016,0.00010968,2]
[361077724,1747234244625,-400.0,0.00010968,2]
[361077725,1747234244634,-400.0,0.00010968,2]
[361077726,1747234244643,-400.0,0.00010968,2]
[361077727,1747234244653,-400.0,0.00010968,2]
[361077728,1747234244662,-625.23,0.00010968,2]
[361077729,1747234244672,-400.0,0.00010968,2]
[361077730,1747234244680,-731.43,0.00010968,2]
[361077731,1747234244689,-400.0,0.00010968,2]
[361077732,1747234244699,-400.0,0.00010968,2]
[361077733,1747234244708,-400.0,0.00010968,2]
[361077734,1747234244717,-400.0,0.00010968,2]
[361077735,1747234244726,-732.06,0.00010968,2]
[361077736,1747234244735,-943.4,0.00010968,2]
[361077737,1747234244744,-400.0,0.00010968,2]
[361077738,1747234244753,-400.0,0.00010968,2]
[361077739,1747234244762,-400.0,0.00010968,2]
[361077740,1747234244772,-524.97799727,0.00010968,2]
[361077741,1747234244781,-400.0,0.00010968,2]
[361077742,1747234244790,-686.73,0.00010968,2]
[361077743,1747234244799,-400.0,0.00010968,2]
[361077744,1747234244808,-400.0,0.00010968,2]
[361077745,1747234244817,-400.0,0.00010968,2]
[361077746,1747234244826,-400.0,0.00010968,2]
[361077747,1747234244835,-808.1,0.00010968,2]
[361077748,1747234244844,-636.06,0.00010968,2]
[361077749,1747234244853,-400.0,0.00010968,2]
[361077750,1747234244862,-400.0,0.00010968,2]
[361077751,1747234244871,-666.38,0.00010968,2]
[361077752,1747234244880,-400.0,0.00010968,2]
[361077753,1747234244889,-400.0,0.00010968,2]
[361077754,1747234244898,-400.0,0.00010968,2]
[361077755,1747234244909,-1313.15,0.00010968,2]
[361077756,1747234244918,-831.9,0.00010968,2]
[361077757,1747234244927,-445.12,0.00010968,2]
[361077758,1747234244936,-400.0,0.00010968,2]
[361077759,1747234244946,-400.0,0.00010968,2]
[361077760,1747234244956,-400.0,0.00010968,2]
[361077761,1747234244965,-400.0,0.00010968,2]
[361077762,1747234244975,-726.88,0.00010968,2]
[361077763,1747234244984,-400.0,0.00010968,2]
[361077764,1747234244994,-400.0,0.00010968,2]
[361077765,1747234245003,-404.54,0.00010968,2]
[361077766,1747234245012,-400.0,0.00010968,2]
[361077767,1747234245022,-400.0,0.00010968,2]
[361077768,1747234245032,-400.0,0.00010968,2]
[361077769,1747234245042,-522.5,0.00010968,2]
[361077770,1747234245052,-400.0,0.00010968,2]
[361077771,1747234245062,-400.0,0.00010968,2]
[361077772,1747234245072,-632.6,0.00010968,2]
[361077773,1747234245082,-1747.42,0.00010968,2]
[361077774,1747234245092,-400.0,0.00010968,2]
[361077775,1747234245101,-400.0,0.00010968,2]
[361077776,1747234245111,-400.0,0.00010968,2]
[361077777,1747234245121,-794.25,0.00010968,2]
[361077778,1747234245130,-400.0,0.00010968,2]
[361077779,1747234245140,-460.22,0.00010968,2]
[361077780,1747234245149,-400.0,0.00010968,2]
[361077781,1747234245159,-449.71,0.00010968,2]
[361077782,1747234245169,-400.0,0.00010968,2]
[361077783,1747234245179,-200.0,0.00010968,2]
[361077784,1747234245188,-500.0,0.00010969,2]
[361077785,1747234245197,-500.0,0.00010973,2]
[361077786,1747234245207,-500.16058833,0.00010973,2]
[361077787,1747234245216,-500.61020259,0.00010973,2]
[361077788,1747234245225,-212.06444913,0.00010973,2]
[361077789,1747234245235,-500.0,0.00010973,2]
[361077790,1747234245245,-500.0,0.00010973,2]
[361077791,1747234245255,-500.0,0.00010973,2]
[361077792,1747234245265,-500.0,0.00010973,2]
[361077793,1747234245275,-200.0,0.00011078,2]
[361077794,1747234245285,-2914.01203375,0.00011099,2]
[361077795,1747234245294,-2639.87683719,0.00011099,2]
[361077796,1747234245304,-1000.0,0.00011125,2]
[361077797,1747234245313,-550.31836732,0.00011141,2]
[361077798,1747234245323,-191.57456082,0.00011142,2]
[361077799,1747234245332,-2639.87683711,0.0001117,2]
[361077800,1747234245341,-2914.01203375,0.0001117,2]
[361077801,1747234245350,-653.64,0.00011239,2]
[361077802,1747234245359,-400.0,0.0001124,2]
[361077803,1747234245369,-400.0,0.0001124,2]
[361077804,1747234245379,-400.0,0.0001124,2]
[361077805,1747234245388,-400.0,0.0001124,2]
[361077806,1747234245398,-400.0,0.0001124,2]
[361077807,1747234245409,-400.0,0.0001124,2]
[361077808,1747234245418,-400.0,0.0001124,2]
[361077809,1747234245428,-207.289549,0.0001124,2]
[361077810,1747234245438,-24465.503004,0.0001124,2]
[361077811,1747234245448,-400.0,0.0001124,2]
[361077812,1747234245463,-400.0,0.0001124,2]
[361077813,1747234245472,-400.0,0.0001124,2]
[361077814,1747234245482,-481.507046,0.0001124,2]
[361077815,1747234245492,-400.0,0.0001124,2]
[361077816,1747234245502,-539.3,0.0001124,2]
[361077817,1747234245511,-250.0,0.0001124,2]
[361077818,1747234245522,-400.0,0.0001124,2]
[361077819,1747234245531,-400.0,0.0001124,2]
[361077820,1747234245541,-400.0,0.0001124,2]
[361077821,1747234245550,-400.0,0.0001124,2]
[361077822,1747234245559,-404.22,0.0001124,2]
[361077823,1747234245569,-400.0,0.0001124,2]
[361077824,1747234245578,-400.0,0.0001124,2]
[361077825,1747234245588,-400.0,0.0001124,2]
[361077826,1747234245598,-722.34,0.0001124,2]
[361077827,1747234245607,-400.0,0.0001124,2]
[361077828,1747234245616,-400.0,0.0001124,2]
[361077829,1747234245627,-2815.78,0.0001124,2]
[361077830,1747234245636,-400.0,0.0001124,2]
[361077831,1747234245645,-400.0,0.0001124,2]
[361077832,1747234245656,-2613.51,0.0001124,2]
[361077833,1747234245665,-400.0,0.0001124,2]
[361077834,1747234245675,-1082.58,0.0001124,2]
[361077835,1747234245684,-400.0,0.0001124,2]
[361077836,1747234245693,-400.0,0.0001124,2]
[361077837,1747234245704,-1078.51,0.0001124,2]
[361077838,1747234245713,-400.0,0.0001124,2]
[361077839,1747234245723,-386.55955153,0.0001124,2]
[361077840,1747234245732,-400.0,0.0001124,2]
[361077841,1747234245741,-400.0,0.0001124,2]
[361077842,1747234245752,-603.15,0.0001124,2]
[361077843,1747234245761,-487.65,0.0001124,2]
[361077845,1747234245771,-400.0,0.0001124,2]
[361077847,1747234245780,-400.0,0.0001124,2]
[361077848,1747234245790,-400.0,0.0001124,2]
[361077849,1747234245799,-558.91,0.0001124,2]
[361077850,1747234245809,-400.0,0.0001124,2]
[361077851,1747234245819,-571.45,0.0001124,2]
[361077852,1747234245829,-2019.53,0.0001124,2]
[361077853,1747234245838,-400.0,0.0001124,2]
[361077854,1747234245847,-400.0,0.0001124,2]
[361077855,1747234245857,-400.0,0.0001124,2]
[361077856,1747234245866,-958.96,0.0001124,2]
[361077857,1747234245876,-400.0,0.0001124,2]
[361077858,1747234245885,-615.25,0.0001124,2]
[361077859,1747234245894,-1747.24,0.0001124,2]
[361077860,1747234245904,-565.21,0.0001124,2]
[361077861,1747234245914,-669.92,0.0001124,2]
[361077862,1747234245923,-400.0,0.0001124,2]
[361077863,1747234245933,-400.0,0.0001124,2]
[361077864,1747234245943,-1143.69,0.0001124,2]
[361077865,1747234245952,-489.13,0.0001124,2]
[361077866,1747234245961,-400.0,0.0001124,2]
[361077867,1747234245970,-1259.34,0.0001124,2]
[361077868,1747234245980,-400.0,0.0001124,2]
[361077869,1747234245990,-400.0,0.0001124,2]
[361077870,1747234246000,-400.0,0.0001124,2]
[361077871,1747234246009,-400.0,0.0001124,2]
[361077872,1747234246019,-420.87,0.0001124,2]
[361077873,1747234246028,-841.18,0.0001124,2]
[361077874,1747234246039,-400.0,0.0001124,2]
[361077875,1747234246049,-852.34,0.0001124,2]
[361077876,1747234246058,-1260.15,0.0001124,2]
[361077877,1747234246069,-400.0,0.0001124,2]
[361077878,1747234246078,-2542.32,0.0001124,2]
[361077879,1747234246088,-898.08,0.0001124,2]
[361077880,1747234246099,-400.0,0.0001124,2]
[361077881,1747234246108,-400.0,0.0001124,2]
[361077882,1747234246119,-2180.44,0.0001124,2]
[361077883,1747234246129,-501.73,0.0001124,2]
[361077884,1747234246140,-2274.21,0.0001124,2]
[361077885,1747234246150,-400.0,0.0001124,2]
[361077886,1747234246160,-400.0,0.0001124,2]
[361077887,1747234246170,-6022.93,0.0001124,2]
[361077888,1747234246180,-1318.91,0.0001124,2]
[361077889,1747234246191,-400.0,0.0001124,2]
[361077890,1747234246202,-400.0,0.0001124,2]
[361077891,1747234246211,-536.0,0.0001124,2]
[361077892,1747234246222,-417.08,0.0001124,2]
[361077893,1747234246233,-10046.45,0.0001124,2]
[361077894,1747234246244,-400.0,0.0001124,2]
[361077895,1747234246253,-400.0,0.0001124,2]
[361077896,1747234246263,-837.52,0.0001124,2]
[361077897,1747234246274,-829.73,0.0001124,2]
[361077898,1747234246286,-400.0,0.0001124,2]
[361077899,1747234246297,-1522.93,0.0001124,2]
[361077900,1747234246308,-876.6,0.0001124,2]
[361077901,1747234246318,-400.0,0.0001124,2]
[361077902,1747234246327,-400.0,0.0001124,2]
[361077903,1747234246336,-422.87,0.0001124,2]
[361077904,1747234246345,-400.0,0.0001124,2]
[361077905,1747234246355,-400.0,0.0001124,2]
[361077906,1747234246366,-400.0,0.0001124,2]
[361077907,1747234246376,-989.23,0.0001124,2]
[361077908,1747234246385,-896.77,0.0001124,2]
[361077909,1747234246395,-607.1,0.0001124,2]
[361077910,1747234246405,-892.78,0.0001124,2]
[361077911,1747234246414,-400.0,0.0001124,2]
[361077912,1747234246423,-400.0,0.0001124,2]
[361077913,1747234246433,-400.0,0.0001124,2]
[361077914,1747234246442,-1469.03,0.0001124,2]
[361077916,1747234246455,-3385.9,0.0001124,2]
[361077918,1747234246464,-400.0,0.0001124,2]
[361077920,1747234246474,-400.0,0.0001124,2]
[361077922,1747234246483,-1068.75,0.0001124,2]
[361077924,1747234246494,-536.0694934,0.0001124,2]
[361077926,1747234246503,-2126.9,0.0001124,2]
[361077928,1747234246512,-400.0,0.0001124,2]
[361077930,1747234246522,-1726.99,0.0001124,2]
[361077932,1747234246534,-1060.21,0.0001124,2]
[361077934,1747234246543,-425.85,0.0001124,2]
[361077936,1747234246552,-400.0,0.0001124,2]
[361077937,1747234246562,-504.37,0.00011241,2]
[361077939,1747234246571,-400.0,0.00011241,2]
[361077941,1747234246580,-512.92,0.00011241,2]
[361077944,1747234246590,-400.0,0.00011241,2]
[361077945,1747234246599,-540.9,0.00011241,2]
[361077947,1747234246609,-700.57,0.00011241,2]
[361077949,1747234246618,-400.0,0.00011241,2]
[361077951,1747234246627,-400.0,0.00011241,2]
[361077953,1747234246636,-400.0,0.00011241,2]
[361077955,1747234246647,-400.0,0.00011241,2]
[361077958,1747234246656,-447.57,0.00011241,2]
[361077960,1747234246667,-978.8,0.00011241,2]
[361077961,1747234246677,-400.0,0.00011241,2]
[361077964,1747234246686,-400.0,0.00011241,2]
[361077966,1747234246696,-525.61,0.00011241,2]
[361077968,1747234246706,-400.0,0.00011241,2]
[361077970,1747234246716,-490.06,0.00011241,2]
[361077972,1747234246727,-623.82,0.00011241,2]
[361077973,1747234246736,-400.0,0.00011241,2]
[361077975,1747234246746,-400.0,0.00011241,2]
[361077977,1747234246755,-400.0,0.00011241,2]
[361077979,1747234246763,-400.0,0.00011241,2]
[361077981,1747234246772,-400.0,0.00011241,2]
[361077983,1747234246781,-400.0,0.00011241,2]
[361077985,1747234246790,-400.0,0.00011241,2]
[361077987,1747234246799,-426.56,0.00011241,2]
[361077989,1747234246809,-400.0,0.00011241,2]
[361077991,1747234246818,-400.0,0.00011241,2]
[361077993,1747234246828,-213.44538836,0.00011241,2]
[361077995,1747234246838,-464.53,0.00011241,2]
[361077997,1747234246847,-458.59,0.00011241,2]
[361077999,1747234246856,-400.0,0.00011241,2]
[361078001,1747234246866,-569.06,0.00011241,2]
[361078003,1747234246876,-1081.75,0.00011241,2]
[361078005,1747234246885,-481.43,0.00011241,2]
[361078007,1747234246894,-400.0,0.00011241,2]
[361078009,1747234246903,-544.82,0.00011241,2]
[361078011,1747234246913,-400.0,0.00011241,2]
[361078013,1747234246922,-429.31,0.00011241,2]
[361078015,1747234246931,-400.0,0.00011241,2]
[361078017,1747234246941,-400.0,0.00011241,2]
[361078019,1747234246951,-455.47,0.00011241,2]
[361078021,1747234246960,-474.03,0.00011241,2]
[361078023,1747234246970,-539.89,0.00011241,2]
[361078025,1747234246979,-400.0,0.00011241,2]
[361078027,1747234246989,-400.0,0.00011241,2]
[361078030,1747234246998,-400.0,0.00011241,2]
[361078032,1747234247007,-400.0,0.00011241,2]
[361078033,1747234247016,-667.94,0.00011241,2]
[361078036,1747234247026,-400.0,0.00011241,2]
[361078038,1747234247035,-400.0,0.00011241,2]
[361078039,1747234247045,-400.0,0.00011241,2]
[361078042,1747234247055,-400.0,0.00011241,2]
[361078043,1747234247064,-711.45,0.00011241,2]
[361078045,1747234247073,-400.0,0.00011241,2]
[361078047,1747234247083,-457.04,0.00011241,2]
[361078049,1747234247092,-598.73,0.00011241,2]
[361078051,1747234247102,-400.0,0.00011241,2]
[361078053,1747234247111,-564.88,0.00011241,2]
[361078055,1747234247120,-435.56,0.00011241,2]
[361078057,1747234247129,-524.75,0.00011241,2]
[361078059,1747234247138,-461.18,0.00011241,2]
[361078061,1747234247147,-400.0,0.00011241,2]
[361078063,1747234247158,-400.0,0.00011241,2]
[361078065,1747234247167,-400.0,0.00011241,2]
[361078067,1747234247177,-1092.37,0.00011241,2]
[361078069,1747234247186,-5266.99,0.00011241,2]
[361078072,1747234247196,-612.94,0.00011241,2]
[361078074,1747234247205,-400.0,0.00011241,2]
[361078076,1747234247219,-727.13,0.00011241,2]
[361078078,1747234247228,-2391.97,0.00011241,2]
[361078080,1747234247237,-400.0,0.00011241,2]
[361078082,1747234247246,-849.03,0.00011241,2]
[361078084,1747234247255,-1512.71,0.00011241,2]
[361078086,1747234247264,-400.0,0.00011241,2]
[361078088,1747234247274,-742.53,0.00011241,2]
[361078090,1747234247283,-1562.74,0.00011241,2]
[361078092,1747234247292,-1162.28,0.00011241,2]
[361078094,1747234247302,-698.43,0.00011241,2]
[361078096,1747234247311,-859.04,0.00011241,2]
[361078097,1747234247320,-572.21,0.00011241,2]
[361078099,1747234247330,-8466.33,0.00011241,2]
[361078101,1747234247339,-471.24,0.00011241,2]
[361078103,1747234247348,-400.0,0.00011241,2]
[361078104,1747234247358,-2230.64,0.00011241,2]
[361078105,1747234247368,-1483.05,0.00011241,2]
[361078106,1747234247378,-400.0,0.00011241,2]
[361078107,1747234247388,-855.66,0.00011241,2]
[361078108,1747234247397,-1983.17,0.00011241,2]
[361078109,1747234247409,-500.27,0.00011241,2]
[361078110,1747234247418,-390.06,0.00011241,2]
[361078111,1747234247428,-400.0,0.00011241,2]
[361078112,1747234247437,-1125.01,0.00011241,2]
[361078113,1747234247447,-530.07,0.00011241,2]
[361078114,1747234247460,-400.78460587,0.00011241,2]
[361078115,1747234247469,-7347.98,0.00011241,2]
[361078116,1747234247478,-13036.72,0.00011241,2]
[361078117,1747234247489,-400.0,0.00011241,2]
[361078118,1747234247500,-1210.18,0.00011241,2]
[361078119,1747234247510,-1098.63,0.00011241,2]
[361078120,1747234247520,-1334.58,0.00011241,2]
[361078121,1747234247531,-400.0,0.00011241,2]
[361078122,1747234247541,-4346.4,0.00011241,2]
[361078123,1747234247551,-446.18,0.00011241,2]
[361078124,1747234247560,-2647.17,0.00011241,2]
[361078125,1747234247570,-400.0,0.00011241,2]
[361078126,1747234247579,-2930.44,0.00011241,2]
[361078127,1747234247588,-400.0,0.00011241,2]
[361078128,1747234247597,-529.27297757,0.00011241,2]
[361078129,1747234247607,-999.48,0.00011241,2]
[361078130,1747234247617,-400.0,0.00011241,2]
[361078131,1747234247627,-400.0,0.00011241,2]
[361078132,1747234247637,-718.09,0.00011241,2]
[361078133,1747234247646,-526.47,0.00011241,2]
[361078134,1747234247657,-458.62,0.00011241,2]
[361078135,1747234247667,-3175.61,0.00011241,2]
[361078137,1747234247676,-400.0,0.00011241,2]
[361078138,1747234247686,-400.0,0.00011241,2]
[361078139,1747234247696,-5148.76,0.00011241,2]
[361078140,1747234247705,-663.94,0.00011241,2]
[361078141,1747234247715,-400.0,0.00011241,2]
[361078142,1747234247724,-400.0,0.00011241,2]
[361078143,1747234247734,-596.71,0.00011241,2]
[361078144,1747234247743,-781.03,0.00011241,2]
[361078145,1747234247753,-400.0,0.00011241,2]
[361078146,1747234247763,-1749.96,0.00011241,2]
[361078147,1747234247772,-2148.25,0.00011241,2]
[361078148,1747234247782,-400.0,0.00011241,2]
[361078149,1747234247791,-558.95,0.00011241,2]
[361078150,1747234247801,-400.0,0.00011241,2]
[361078151,1747234247810,-4527.42,0.00011241,2]
[361078152,1747234247819,-400.0,0.00011241,2]
[361078153,1747234247829,-612.62,0.00011241,2]
[361078154,1747234247838,-400.0,0.00011241,2]
[361078155,1747234247849,-7992.43,0.00011241,2]
[361078156,1747234247858,-400.0,0.00011241,2]
[361078157,1747234247868,-400.0,0.00011241,2]
[361078158,1747234247878,-618.19,0.00011241,2]
[361078159,1747234247887,-998.53,0.00011241,2]
[361078160,1747234247897,-649.8,0.00011241,2]
[361078161,1747234247907,-400.0,0.00011241,2]
[361078162,1747234247917,-3706.75,0.00011241,2]
[361078163,1747234247926,-400.0,0.00011241,2]
[361078164,1747234247936,-1106.79,0.00011241,2]
[361078165,1747234247945,-512.26,0.00011241,2]
[361078166,1747234247955,-5610.69,0.00011241,2]
[361078167,1747234247964,-742.03,0.00011241,2]
[361078168,1747234247973,-400.0,0.00011241,2]
[361078169,1747234247983,-400.0,0.00011241,2]
[361078170,1747234247992,-1480.09,0.00011241,2]
[361078171,1747234248002,-400.0,0.00011241,2]
[361078172,1747234248011,-1713.22,0.00011241,2]
[361078173,1747234248021,-400.0,0.00011241,2]
[361078174,1747234248031,-596.75681142,0.00011241,2]
[361078175,1747234248041,-431.74,0.00011241,2]
[361078176,1747234248051,-400.0,0.00011241,2]
[361078177,1747234248061,-400.0,0.00011241,2]
[361078178,1747234248071,-400.0,0.00011241,2]
[361078179,1747234248081,-402.57,0.00011242,2]
[361078180,1747234248092,-400.0,0.00011242,2]
[361078181,1747234248319,-400.0,0.00011242,2]
[361078182,1747234248330,-400.0,0.00011242,2]
[361078183,1747234248340,-400.0,0.00011242,2]
[361078184,1747234248350,-400.0,0.00011242,2]
[361078185,1747234248360,-539.47,0.00011242,2]
[361078186,1747234248370,-400.0,0.00011242,2]
[361078187,1747234248381,-400.0,0.00011242,2]
[361078188,1747234248391,-400.0,0.00011242,2]
[361078189,1747234248401,-400.0,0.00011242,2]
[361078190,1747234248412,-400.0,0.00011242,2]
[361078191,1747234248422,-400.0,0.00011242,2]
[361078192,1747234248431,-400.0,0.00011242,2]
[361078193,1747234248441,-400.0,0.00011242,2]
[361078194,1747234248455,-400.0,0.00011242,2]
[361078195,1747234248464,-400.0,0.00011242,2]
[361078196,1747234248474,-400.0,0.00011242,2]
[361078197,1747234248484,-549.67496957,0.00011242,2]
[361078198,1747234248495,-400.0,0.00011242,2]
[361078199,1747234248504,-400.0,0.00011242,2]
[361078200,1747234248515,-400.0,0.00011242,2]
[361078201,1747234248524,-400.0,0.00011242,2]
[361078202,1747234248535,-635.17,0.00011242,2]
[361078203,1747234248545,-400.0,0.00011242,2]
[361078204,1747234248556,-400.0,0.00011242,2]
[361078205,1747234248566,-400.0,0.00011242,2]
[361078206,1747234248576,-400.0,0.00011242,2]
[361078207,1747234248586,-400.0,0.00011242,2]
[361078208,1747234248597,-731.17,0.00011242,2]
[361078209,1747234248607,-400.0,0.00011242,2]
[361078210,1747234248618,-400.0,0.00011242,2]
[361078211,1747234248629,-691.66,0.00011242,2]
[361078212,1747234248639,-400.0,0.00011242,2]
[361078213,1747234248649,-400.0,0.00011242,2]
[361078214,1747234248660,-400.0,0.00011242,2]
[361078215,1747234248671,-400.0,0.00011242,2]
[361078216,1747234248680,-534.77,0.00011242,2]
[361078217,1747234248690,-446.67304499,0.00011242,2]
[361078218,1747234248700,-500.0,0.00011242,2]
[361078219,1747234248710,-1120.87,0.00011242,2]
[361078220,1747234248719,-400.0,0.00011242,2]
[361078221,1747234248729,-400.0,0.00011242,2]
[361078222,1747234248739,-400.0,0.00011242,2]
[361078223,1747234248748,-405.38,0.00011242,2]
[361078224,1747234248758,-400.0,0.00011242,2]
[361078225,1747234248768,-441.88,0.00011242,2]
[361078226,1747234248778,-400.0,0.00011242,2]
[361078227,1747234248787,-400.0,0.00011242,2]
[361078228,1747234248798,-400.0,0.00011242,2]
[361078229,1747234248808,-400.0,0.00011242,2]
[361078230,1747234248818,-494.71,0.00011242,2]
[361078231,1747234248828,-400.0,0.00011242,2]
[361078232,1747234248838,-400.0,0.00011242,2]
[361078233,1747234248848,-400.0,0.00011242,2]
[361078234,1747234248858,-767.49,0.00011242,2]
[361078235,1747234248868,-400.0,0.00011242,2]
[361078236,1747234248878,-1083.0,0.00011242,2]
[361078237,1747234248888,-400.0,0.00011242,2]
[361078238,1747234248897,-400.0,0.00011242,2]
[361078239,1747234248908,-400.0,0.00011242,2]
[361078240,1747234248918,-425.2,0.00011242,2]
[361078241,1747234248928,-590.91,0.00011242,2]
[361078242,1747234248938,-1166.99,0.00011242,2]
[361078243,1747234248947,-525.36020938,0.00011242,2]
[361078244,1747234248957,-400.0,0.00011242,2]
[361078245,1747234248967,-400.0,0.00011242,2]
[361078246,1747234248976,-570.18,0.00011242,2]
[361078247,1747234248986,-400.0,0.00011242,2]
[361078248,1747234248996,-400.0,0.00011242,2]
[361078249,1747234249006,-400.0,0.00011242,2]
[361078250,1747234249015,-400.0,0.00011242,2]
[361078251,1747234249024,-400.0,0.00011242,2]
[361078252,1747234249034,-400.0,0.00011242,2]
[361078253,1747234249044,-400.0,0.00011242,2]
[361078254,1747234249055,-1123.96,0.00011242,2]
[361078255,1747234249065,-631.94,0.00011242,2]
[361078256,1747234249074,-400.0,0.00011242,2]
[361078257,1747234249084,-400.0,0.00011242,2]
[361078258,1747234249094,-400.0,0.00011242,2]
[361078259,1747234249103,-400.0,0.00011242,2]
[361078260,1747234249113,-2276.95,0.00011242,2]
[361078261,1747234249123,-754.18,0.00011242,2]
[361078262,1747234249132,-400.0,0.00011242,2]
[361078263,1747234249142,-400.0,0.00011242,2]
[361078264,1747234249151,-454.25,0.00011242,2]
[361078265,1747234249162,-494.78,0.00011242,2]
[361078266,1747234249172,-400.0,0.00011242,2]
[361078267,1747234249182,-322.22408161,0.00011242,2]
[361078268,1747234249192,-400.0,0.00011242,2]
[361078269,1747234249201,-400.0,0.00011242,2]
[361078270,1747234249211,-693.11,0.00011242,2]
[361078271,1747234249220,-400.0,0.00011242,2]
[361078272,1747234249229,-400.0,0.00011242,2]
[361078273,1747234249239,-400.0,0.00011242,2]
[361078274,1747234249249,-400.0,0.00011242,2]
[361078275,1747234249258,-1105.54,0.00011242,2]
[361078276,1747234249268,-400.0,0.00011242,2]
[361078277,1747234249278,-400.0,0.00011242,2]
[361078278,1747234249288,-747.89,0.00011242,2]
[361078279,1747234249298,-400.0,0.00011242,2]
[361078280,1747234249307,-400.0,0.00011242,2]
[361078281,1747234249317,-400.0,0.00011242,2]